[Event "47th GER-ch Blitz 2020"]
[Site "Magdeburg"]
[Date "2020.08.15"]
[Round "27.10"]
[White "Schoewel, Matthias"]
[Black "Braun, Georg"]
[Result "1-0"]
[ECO "B18"]
[WhiteElo "2218"]
[BlackElo "2360"]
[Annotator "ChessBase"]
[PlyCount "87"]
[EventDate "2020.07.28"]
[EventType "tourn"]
[EventCountry "GER"]
[SourceTitle "playchess.com"]
[Source "ChessBase"]
[SourceQuality "1"]
[TimeControl "180+2"]

1. e4 {[%emt 0:00:00]} c6 {[%emt 0:00:00]} 2. d4 {[%emt 0:00:00]} d5 {[%emt 0:00:01]} 3. Nc3 {[%emt 0:00:01]} dxe4 4. Nxe4 {[%emt 0:00:02]} Bf5 {[%emt 0:00:02]} 5. Ng3 {[%emt 0:00:01]} Bg6 {[%emt 0:00:01]} 6. Nf3 {[%emt 0:00:01]} e6 {[%emt 0:00:02]} 7. Bd3 {[%emt 0:00:01]} Nf6 {[%emt 0:00:02]} 8. O-O {[%emt 0:00:01]} Bd6 {[%emt 0:00:02]} 9. Re1 {[%emt 0:00:02]} O-O {[%emt 0:00:04]} 10. Bxg6 {[%emt 0:00:01]} hxg6 {[%emt 0:00:02]} 11. Bg5 {[%emt 0:00:04]} Nbd7 {[%emt 0:00:07]} 12. Ne5 {[%emt 0:00:06]} Qc7 {[%emt 0:00:05]} 13. Nxd7 {[%emt 0:00:08]} Qxd7 {[%emt 0:00:08]} 14. Bxf6 {[%emt 0:00:14]} gxf6 {[%emt 0:00:02]} 15. c3 {[%emt 0:00:06]} Kg7 {[%emt 0:00:01]} 16. Qf3 {[%emt 0:00:01]} Rh8 {[%emt 0:00:03]} 17. h3 {[%emt 0:00:01]} f5 {[%emt 0:00:15]} 18. Rad1 {[%emt 0:00:03]} b5 {[%emt 0:00:03]} 19. b3 {[%emt 0:00:01]} a5 {[%emt 0:00:01]} 20. c4 {[%emt 0:00:04]} Bb4 {[%emt 0:00:30]} 21. Re2 {[%emt 0:00:06]} Rhd8 {[%emt 0:00:17]} 22. Re3 {[%emt 0:00:14]} a4 {[%emt 0:00:04]} 23. Red3 {[%emt 0:00:02]} axb3 {[%emt 0:00:04]} 24. axb3 {[%emt 0:00:01]} bxc4 {[%emt 0:00:20]} 25. bxc4 {[%emt 0:00:01]} Bd6 {[%emt 0:00:05]} 26. Rb3 {[%emt 0:00:15]} Ra4 {[%emt 0:00:08]} 27. Qc3 {[%emt 0:00:05]} Kg8 {[%emt 0:00:11]} 28. Nf1 {[%emt 0:00:09]} Be5 {[%emt 0:00:07]} 29. Ne3 {[%emt 0:00:29]} Bxd4 {[%emt 0:00:03]} 30. Qc2 {[%emt 0:00:08]} c5 {[%emt 0:00:05]} 31. Rb5 {[%emt 0:00:19]} Raa8 {[%emt 0:00:41]} 32. Qb3 {[%emt 0:00:02]} Qc6 {[%emt 0:00:09]} 33. Rb1 {[%emt 0:00:13]} Qe4 {[%emt 0:00:04]} 34. Nf1 {[%emt 0:00:16]} Kg7 {[%emt 0:00:05]} 35. Qg3 {[%emt 0:00:05]} Be5 {[%emt 0:00:02]} 36. Qb3 {[%emt 0:00:15]} Bd4 {[%emt 0:00:02]} 37. Qg3 {[%emt 0:00:01]} Rd7 {[%emt 0:00:03]} 38. Nd2 {[%emt 0:00:05]} Qc2 {[%emt 0:00:08]} 39. Nf3 {[%emt 0:00:12]} Ra2 {[%emt 0:00:02]} 40. Rf1 {[%emt 0:00:02]} Qxc4 {[%emt 0:00:03]} 41. Rb8 {[%emt 0:00:02]} Qd5 {[%emt 0:00:03]} 42. Qh4 {[%emt 0:00:02]} f6 {[%emt 0:00:04]} 43. Qh8+ {[%emt 0:00:03]} Kf7 {[%emt 0:00:00]} 44. Qh4 1-0

[Event "47th GER-ch Blitz 2020"]
[Site "Magdeburg"]
[Date "2020.08.15"]
[Round "27.11"]
[White "Stein, Robert"]
[Black "Siebrecht, Sebastian"]
[Result "1/2-1/2"]
[ECO "E67"]
[WhiteElo "2325"]
[BlackElo "2429"]
[Annotator "ChessBase"]
[PlyCount "146"]
[EventDate "2020.07.28"]
[EventType "tourn"]
[EventCountry "GER"]
[SourceTitle "playchess.com"]
[Source "ChessBase"]
[SourceQuality "1"]
[TimeControl "180+2"]

1. d4 {[%emt 0:00:00]} g6 {[%emt 0:00:00]} 2. c4 {[%emt 0:00:02]} Bg7 {[%emt 0:00:02]} 3. g3 {[%emt 0:00:02]} d6 {[%emt 0:00:02]} 4. Bg2 {[%emt 0:00:02]} Nf6 {[%emt 0:00:02]} 5. Nc3 {[%emt 0:00:02]} O-O {[%emt 0:00:02]} 6. Nf3 {[%emt 0:00:03]} Nbd7 {[%emt 0:00:03]} 7. O-O a6 8. a4 {[%emt 0:00:15]} Rb8 {[%emt 0:00:02]} 9. a5 {[%emt 0:00:03]} c5 {[%emt 0:00:05]} 10. dxc5 {[%emt 0:00:13]} Nxc5 {[%emt 0:00:01]} 11. Nd4 {[%emt 0:00:01]} Ne6 {[%emt 0:00:07]} 12. Nc2 {[%emt 0:00:35]} Bd7 {[%emt 0:00:05]} 13. Ne3 {[%emt 0:00:03]} Bc6 {[%emt 0:00:13]} 14. Ned5 {[%emt 0:00:03]} Nc7 {[%emt 0:00:08]} 15. Be3 {[%emt 0:00:08]} Ncxd5 {[%emt 0:00:06]} 16. cxd5 {[%emt 0:00:03]} Bd7 {[%emt 0:00:06]} 17. Bb6 {[%emt 0:00:03]} Qe8 {[%emt 0:00:02]} 18. e4 {[%emt 0:00:14]} Rc8 {[%emt 0:00:09]} 19. Re1 {[%emt 0:00:03]} Ng4 {[%emt 0:00:05]} 20. Rc1 {[%emt 0:00:21]} Ne5 {[%emt 0:00:17]} 21. Bd4 {[%emt 0:00:02]} Bg4 {[%emt 0:00:03]} 22. Qc2 {[%emt 0:00:38]} Qd7 {[%emt 0:00:20]} 23. Bxe5 {[%emt 0:00:14]} Bxe5 {[%emt 0:00:01]} 24. Qb3 {[%emt 0:00:01]} h5 {[%emt 0:00:14]} 25. Qb4 {[%emt 0:00:25]} Rc5 {[%emt 0:00:30]} 26. Na4 {[%emt 0:00:01]} Rxc1 {[%emt 0:00:05]} 27. Rxc1 {[%emt 0:00:01]} Rc8 {[%emt 0:00:01]} 28. Rc4 {[%emt 0:00:10]} Be2 {[%emt 0:00:12]} 29. Rxc8+ {[%emt 0:00:03]} Qxc8 {[%emt 0:00:01]} 30. Qd2 {[%emt 0:00:01]} Bg4 {[%emt 0:00:22]} 31. Bf1 {[%emt 0:00:06]} Qc7 {[%emt 0:00:14]} 32. Nb6 {[%emt 0:00:03]} Qc5 {[%emt 0:00:10]} 33. Nc4 {[%emt 0:00:01]} Bg7 {[%emt 0:00:05]} 34. b4 {[%emt 0:00:01]} Qc7 {[%emt 0:00:01]} 35. Ne3 {[%emt 0:00:01]} Bd7 {[%emt 0:00:01]} 36. Nc4 {[%emt 0:00:01]} Bb5 37. Qd3 h4 {[%emt 0:00:05]} 38. Kg2 {[%emt 0:00:01]} Qd7 {[%emt 0:00:01]} 39. Be2 {[%emt 0:00:01]} h3+ {[%emt 0:00:03]} 40. Kg1 {[%emt 0:00:01]} Qc7 {[%emt 0:00:04]} 41. Qc2 {[%emt 0:00:01]} Bd4 {[%emt 0:00:03]} 42. Qd3 {[%emt 0:00:00]} Bg7 {[%emt 0:00:01]} 43. Bf1 {[%emt 0:00:01]} Qc8 {[%emt 0:00:01]} 44. Be2 {[%emt 0:00:01]} Kf8 {[%emt 0:00:04]} 45. Qc2 {[%emt 0:00:02]} Bxc4 {[%emt 0:00:04]} 46. Bxc4 {[%emt 0:00:03]} Qc7 {[%emt 0:00:03]} 47. Qd3 {[%emt 0:00:01]} Be5 48. Qb3 {[%emt 0:00:01]} Bg7 {[%emt 0:00:03]} 49. Bf1 {[%emt 0:00:01]} Qc1 {[%emt 0:00:02]} 50. b5 {[%emt 0:00:02]} Bd4 {[%emt 0:00:03]} 51. bxa6 {[%emt 0:00:02]} bxa6 {[%emt 0:00:01]} 52. Qd3 {[%emt 0:00:01]} Qb2 {[%emt 0:00:01]} 53. Qe2 {[%emt 0:00:02]} Qxe2 {[%emt 0:00:06]} 54. Bxe2 {[%emt 0:00:01]} Bc3 {[%emt 0:00:00]} 55. Bxa6 {[%emt 0:00:04]} Bxa5 {[%emt 0:00:01]} 56. Bf1 {[%emt 0:00:02]} Kg7 {[%emt 0:00:01]} 57. Bxh3 {[%emt 0:00:01]} Kf6 {[%emt 0:00:00]} 58. f4 {[%emt 0:00:02]} g5 {[%emt 0:00:03]} 59. Kf2 {[%emt 0:00:01]} gxf4 60. gxf4 {[%emt 0:00:01]} Bd2 {[%emt 0:00:02]} 61. Kf3 {[%emt 0:00:01]} Bc1 {[%emt 0:00:01]} 62. Bd7 {[%emt 0:00:02]} e6 {[%emt 0:00:02]} 63. dxe6 {[%emt 0:00:03]} fxe6 {[%emt 0:00:01]} 64. Bc6 {[%emt 0:00:01]} d5 {[%emt 0:00:06]} 65. Bxd5 {[%emt 0:00:08]} exd5 {[%emt 0:00:01]} 66. exd5 {[%emt 0:00:01]} Ba3 {[%emt 0:00:02]} 67. Ke4 {[%emt 0:00:02]} Bd6 {[%emt 0:00:01]} 68. h4 {[%emt 0:00:03]} Kg6 {[%emt 0:00:02]} 69. f5+ {[%emt 0:00:02]} Kf6 {[%emt 0:00:01]} 70. h5 {[%emt 0:00:01]} Bf8 {[%emt 0:00:03]} 71. h6 {[%emt 0:00:03]} Bxh6 {[%emt 0:00:01]} 72. d6 {[%emt 0:00:00]} Bf8 {[%emt 0:00:01]} 73. d7 {[%emt 0:00:04]} Ke7 {[%emt 0:00:02]} 1/2-1/2

[Event "47th GER-ch Blitz 2020"]
[Site "Magdeburg"]
[Date "2020.08.15"]
[Round "27.12"]
[White "Krause, Benedict"]
[Black "Langrock, Hannes"]
[Result "1-0"]
[ECO "B40"]
[WhiteElo "2425"]
[BlackElo "2346"]
[Annotator "ChessBase"]
[PlyCount "77"]
[EventDate "2020.07.28"]
[EventType "tourn"]
[EventCountry "GER"]
[SourceTitle "playchess.com"]
[Source "ChessBase"]
[SourceQuality "1"]
[TimeControl "180+2"]

1. e4 {[%emt 0:00:00]} c5 {[%emt 0:00:00]} 2. Nf3 {[%emt 0:00:01]} e6 {[%emt 0:00:00]} 3. d4 {[%emt 0:00:03]} cxd4 {[%emt 0:00:00]} 4. Nxd4 {[%emt 0:00:00]} Nf6 {[%emt 0:00:01]} 5. Nc3 {[%emt 0:00:01]} Nc6 {[%emt 0:00:02]} 6. Ndb5 {[%emt 0:00:03]} Bb4 {[%emt 0:00:04]} 7. a3 {[%emt 0:00:03]} Bxc3+ {[%emt 0:00:01]} 8. Nxc3 {[%emt 0:00:01]} d5 {[%emt 0:00:01]} 9. exd5 {[%emt 0:00:01]} exd5 {[%emt 0:00:01]} 10. Bd3 {[%emt 0:00:03]} O-O {[%emt 0:00:02]} 11. O-O {[%emt 0:00:01]} d4 {[%emt 0:00:01]} 12. Ne2 {[%emt 0:00:02]} Bg4 {[%emt 0:00:01]} 13. f3 {[%emt 0:00:19]} Bh5 {[%emt 0:00:02]} 14. Nf4 {[%emt 0:00:01]} Bg6 {[%emt 0:00:01]} 15. Nxg6 {[%emt 0:00:08]} hxg6 {[%emt 0:00:02]} 16. f4 {[%emt 0:00:02]} Re8 {[%emt 0:00:10]} 17. Qf3 {[%emt 0:00:12]} Qb6 {[%emt 0:00:07]} 18. b4 {[%emt 0:00:13]} Re3 {[%emt 0:00:35]} 19. Bxe3 {[%emt 0:00:12]} dxe3 {[%emt 0:00:01]} 20. Kh1 {[%emt 0:00:01]} Re8 {[%emt 0:00:14]} 21. Rae1 {[%emt 0:00:30]} Nd4 {[%emt 0:00:06]} 22. Qh3 {[%emt 0:00:03]} Nd5 {[%emt 0:00:48]} 23. c4 {[%emt 0:00:17]} e2 {[%emt 0:00:14]} 24. Bxe2 {[%emt 0:00:48]} Nc2 {[%emt 0:00:51]} 25. cxd5 {[%emt 0:00:31]} Nxe1 {[%emt 0:00:01]} 26. Rxe1 {[%emt 0:00:03]} Qf2 {[%emt 0:00:08]} 27. Qg3 {[%emt 0:00:03]} Rxe2 {[%emt 0:00:04]} 28. Qxf2 {[%emt 0:00:01]} Rxf2 {[%emt 0:00:01]} 29. g3 {[%emt 0:00:09]} Kf8 {[%emt 0:00:04]} 30. Rc1 {[%emt 0:00:01]} Ke7 {[%emt 0:00:12]} 31. Rc7+ {[%emt 0:00:01]} Kd6 {[%emt 0:00:02]} 32. Rxf7 {[%emt 0:00:01]} Kxd5 {[%emt 0:00:02]} 33. Kg1 {[%emt 0:00:01]} Ra2 {[%emt 0:00:02]} 34. Rxg7 {[%emt 0:00:01]} Ke4 {[%emt 0:00:01]} 35. Rc7 {[%emt 0:00:05]} Rxa3 {[%emt 0:00:03]} 36. Rc2 {[%emt 0:00:03]} Kf3 {[%emt 0:00:03]} 37. Rf2+ {[%emt 0:00:01]} Ke3 {[%emt 0:00:01]} 38. Kg2 {[%emt 0:00:01]} Rb3 {[%emt 0:00:01]} 39. Rf3+ {[%emt 0:00:01]} 1-0

[Event "47th GER-ch Blitz 2020"]
[Site "Magdeburg"]
[Date "2020.08.15"]
[Round "27.13"]
[White "Muranyi, Karl-Jasmin"]
[Black "Holtel, Jasper"]
[Result "1/2-1/2"]
[ECO "A45"]
[WhiteElo "2331"]
[BlackElo "2305"]
[Annotator "ChessBase"]
[PlyCount "57"]
[EventDate "2020.07.28"]
[EventType "tourn"]
[EventCountry "GER"]
[SourceTitle "playchess.com"]
[Source "ChessBase"]
[SourceQuality "1"]
[TimeControl "180+2"]

1. d4 {[%emt 0:00:00]} Nf6 {[%emt 0:00:00]} 2. c3 {[%emt 0:00:00]} g6 {[%emt 0:00:00]} 3. Bf4 {[%emt 0:00:00]} Bg7 {[%emt 0:00:00]} 4. h3 {[%emt 0:00:01]} O-O {[%emt 0:00:01]} 5. Nf3 {[%emt 0:00:01]} d6 {[%emt 0:00:01]} 6. e3 {[%emt 0:00:01]} c5 {[%emt 0:00:01]} 7. Nbd2 {[%emt 0:00:01]} b6 {[%emt 0:00:01]} 8. Be2 {[%emt 0:00:01]} Bb7 {[%emt 0:00:01]} 9. O-O {[%emt 0:00:02]} Nbd7 {[%emt 0:00:01]} 10. Bh2 {[%emt 0:00:01]} a6 {[%emt 0:00:00]} 11. a4 {[%emt 0:00:00]} Ra7 {[%emt 0:00:01]} 12. c4 {[%emt 0:00:05]} cxd4 {[%emt 0:00:10]} 13. exd4 {[%emt 0:00:01]} Ne4 {[%emt 0:00:03]} 14. Nxe4 {[%emt 0:00:17]} Bxe4 {[%emt 0:00:02]} 15. Re1 {[%emt 0:00:10]} Qa8 {[%emt 0:00:07]} 16. a5 {[%emt 0:00:08]} bxa5 {[%emt 0:00:05]} 17. Rxa5 {[%emt 0:00:01]} Rb8 {[%emt 0:00:03]} 18. Qd2 {[%emt 0:00:10]} Rab7 {[%emt 0:00:08]} 19. Ra2 {[%emt 0:00:04]} Rb4 {[%emt 0:01:03]} 20. Bg3 {[%emt 0:00:28]} a5 {[%emt 0:00:09]} 21. Rea1 {[%emt 0:00:07]} Qb7 {[%emt 0:00:05]} 22. c5 {[%emt 0:00:17]} Rxb2 {[%emt 0:00:16]} 23. Qxa5 {[%emt 0:00:01]} Rxa2 {[%emt 0:00:13]} 24. Qxa2 {[%emt 0:00:07]} Ra8 {[%emt 0:00:06]} 25. Qxa8+ {[%emt 0:00:04]} Qxa8 {[%emt 0:00:01]} 26. Rxa8+ {[%emt 0:00:01]} Bxa8 {[%emt 0:00:01]} 27. cxd6 {[%emt 0:00:01]} exd6 {[%emt 0:00:02]} 28. Bxd6 {[%emt 0:00:02]} Bxf3 {[%emt 0:00:04]} 29. Bxf3 1/2-1/2

[Event "47th GER-ch Blitz 2020"]
[Site "Magdeburg"]
[Date "2020.08.15"]
[Round "27.14"]
[White "Braeuning, Rudolf Wilhelm"]
[Black "Voege, Tobias"]
[Result "0-1"]
[ECO "C05"]
[WhiteElo "2244"]
[BlackElo "2326"]
[Annotator "ChessBase"]
[PlyCount "122"]
[EventDate "2020.07.28"]
[EventType "tourn"]
[EventCountry "GER"]
[SourceTitle "playchess.com"]
[Source "ChessBase"]
[SourceQuality "1"]
[TimeControl "180+2"]

1. e4 {[%emt 0:00:00]} e6 {[%emt 0:00:00]} 2. d4 {[%emt 0:00:01]} d5 {[%emt 0:00:00]} 3. Nd2 {[%emt 0:00:01]} Nf6 {[%emt 0:00:00]} 4. e5 {[%emt 0:00:01]} Nfd7 {[%emt 0:00:01]} 5. Bd3 {[%emt 0:00:01]} c5 {[%emt 0:00:01]} 6. c3 {[%emt 0:00:01]} Nc6 {[%emt 0:00:00]} 7. Ndf3 {[%emt 0:00:01]} Qb6 {[%emt 0:00:08]} 8. Ne2 {[%emt 0:00:03]} cxd4 {[%emt 0:00:06]} 9. cxd4 {[%emt 0:00:02]} f6 {[%emt 0:00:22]} 10. exf6 {[%emt 0:00:03]} Nxf6 {[%emt 0:00:02]} 11. O-O {[%emt 0:00:01]} Bd6 {[%emt 0:00:02]} 12. Nc3 {[%emt 0:00:09]} O-O {[%emt 0:00:08]} 13. Be3 {[%emt 0:00:02]} Bd7 {[%emt 0:00:06]} 14. a3 {[%emt 0:00:06]} Rae8 {[%emt 0:00:04]} 15. b4 {[%emt 0:00:11]} Qd8 {[%emt 0:00:13]} 16. Rc1 {[%emt 0:00:14]} a6 {[%emt 0:00:09]} 17. Na4 {[%emt 0:00:07]} e5 {[%emt 0:00:06]} 18. dxe5 {[%emt 0:00:25]} Nxe5 {[%emt 0:00:01]} 19. Nxe5 {[%emt 0:00:17]} Bxe5 {[%emt 0:00:02]} 20. Bb6 {[%emt 0:00:44]} Qb8 {[%emt 0:00:43]} 21. h3 {[%emt 0:00:10]} Bf4 {[%emt 0:00:29]} 22. Rc3 {[%emt 0:00:25]} Qe5 {[%emt 0:00:08]} 23. Bd4 {[%emt 0:00:18]} Qg5 {[%emt 0:00:01]} 24. Kh1 {[%emt 0:00:08]} Ne4 {[%emt 0:00:13]} 25. Bxe4 {[%emt 0:00:06]} dxe4 {[%emt 0:00:04]} 26. Nc5 {[%emt 0:00:01]} Bc6 {[%emt 0:00:04]} 27. Be3 {[%emt 0:00:05]} Bxe3 {[%emt 0:00:06]} 28. Rxe3 {[%emt 0:00:01]} Rxf2 {[%emt 0:00:04]} 29. Rxf2 {[%emt 0:00:05]} Qxe3 {[%emt 0:00:01]} 30. Qb3+ {[%emt 0:00:05]} Qxb3 {[%emt 0:00:01]} 31. Nxb3 {[%emt 0:00:01]} e3 {[%emt 0:00:01]} 32. Re2 {[%emt 0:00:01]} Bb5 {[%emt 0:00:00]} 33. Re1 {[%emt 0:00:00]} e2 {[%emt 0:00:02]} 34. Nd4 {[%emt 0:00:04]} Bc4 {[%emt 0:00:07]} 35. Kg1 {[%emt 0:00:01]} Re3 {[%emt 0:00:04]} 36. Kf2 {[%emt 0:00:07]} Rxa3 {[%emt 0:00:02]} 37. Nf5 {[%emt 0:00:03]} Rb3 {[%emt 0:00:03]} 38. Ne3 {[%emt 0:00:02]} Rxb4 {[%emt 0:00:04]} 39. Nxc4 {[%emt 0:00:02]} Rxc4 {[%emt 0:00:00]} 40. Rxe2 {[%emt 0:00:01]} Rc7 {[%emt 0:00:01]} 41. Re8+ {[%emt 0:00:02]} Kf7 {[%emt 0:00:01]} 42. Rb8 {[%emt 0:00:01]} a5 {[%emt 0:00:02]} 43. Kf3 {[%emt 0:00:01]} Rc3+ {[%emt 0:00:02]} 44. Kf4 {[%emt 0:00:01]} Rb3 {[%emt 0:00:01]} 45. Ra8 {[%emt 0:00:02]} b6 {[%emt 0:00:03]} 46. Kf5 {[%emt 0:00:03]} Rb5+ {[%emt 0:00:01]} 47. Ke4 {[%emt 0:00:00]} Kf6 {[%emt 0:00:02]} 48. Rf8+ {[%emt 0:00:02]} Ke7 {[%emt 0:00:02]} 49. Ra8 {[%emt 0:00:02]} Rb4+ {[%emt 0:00:00]} 50. Ke5 {[%emt 0:00:01]} Kf7 {[%emt 0:00:03]} 51. Kf5 {[%emt 0:00:01]} Rb5+ {[%emt 0:00:03]} 52. Kf4 {[%emt 0:00:01]} Kf6 {[%emt 0:00:02]} 53. h4 {[%emt 0:00:02]} Rb4+ {[%emt 0:00:01]} 54. Kg3 {[%emt 0:00:01]} a4 {[%emt 0:00:01]} 55. Kh3 {[%emt 0:00:03]} b5 {[%emt 0:00:01]} 56. g4 {[%emt 0:00:01]} Rb3+ {[%emt 0:00:01]} 57. Kg2 {[%emt 0:00:01]} a3 {[%emt 0:00:01]} 58. Ra5 {[%emt 0:00:02]} Rb2+ {[%emt 0:00:03]} 59. Kf3 {[%emt 0:00:01]} a2 {[%emt 0:00:01]} 60. Kf4 {[%emt 0:00:02]} Rb4+ {[%emt 0:00:03]} 61. Kf3 {[%emt 0:00:02]} Ra4 {[%emt 0:00:01]} 0-1

[Event "47th GER-ch Blitz 2020"]
[Site "Magdeburg"]
[Date "2020.08.15"]
[Round "28.3"]
[White "Holtel, Jasper"]
[Black "Braeuning, Rudolf Wilhelm"]
[Result "1-0"]
[ECO "B21"]
[WhiteElo "2305"]
[BlackElo "2244"]
[Annotator "ChessBase"]
[PlyCount "47"]
[EventDate "2020.07.28"]
[EventType "tourn"]
[EventCountry "GER"]
[SourceTitle "playchess.com"]
[Source "ChessBase"]
[SourceQuality "1"]
[TimeControl "180+2"]

1. e4 {[%emt 0:00:00]} c5 {[%emt 0:00:00]} 2. d4 {[%emt 0:00:01]} cxd4 {[%emt 0:00:00]} 3. c3 {[%emt 0:00:00]} Nf6 {[%emt 0:00:02]} 4. e5 {[%emt 0:00:01]} Nd5 {[%emt 0:00:01]} 5. Nf3 {[%emt 0:00:01]} Nc6 {[%emt 0:00:00]} 6. Bc4 {[%emt 0:00:04]} e6 {[%emt 0:00:04]} 7. O-O {[%emt 0:00:06]} Be7 {[%emt 0:00:04]} 8. cxd4 {[%emt 0:00:28]} d6 {[%emt 0:00:04]} 9. exd6 {[%emt 0:00:10]} Qxd6 {[%emt 0:00:05]} 10. Nc3 {[%emt 0:00:01]} Nf6 {[%emt 0:00:13]} 11. Bg5 {[%emt 0:00:12]} O-O {[%emt 0:00:03]} 12. Bh4 {[%emt 0:00:06]} a6 {[%emt 0:00:13]} 13. Bg3 {[%emt 0:00:02]} Qb4 {[%emt 0:00:08]} 14. Qe2 {[%emt 0:00:03]} b5 {[%emt 0:00:38]} 15. Bb3 {[%emt 0:00:02]} Bb7 {[%emt 0:00:15]} 16. Rad1 {[%emt 0:00:04]} Rad8 {[%emt 0:00:12]} 17. d5 {[%emt 0:00:08]} exd5 {[%emt 0:00:15]} 18. Nxd5 {[%emt 0:00:02]} Nxd5 {[%emt 0:00:05]} 19. Bxd5 {[%emt 0:00:06]} Bf6 {[%emt 0:00:04]} 20. b3 {[%emt 0:00:18]} Rfe8 {[%emt 0:00:19]} 21. Qc2 {[%emt 0:00:04]} Rc8 {[%emt 0:00:15]} 22. Qf5 {[%emt 0:00:17]} Nd8 {[%emt 0:00:15]} 23. Rfe1 {[%emt 0:00:24]} Bxd5 {[%emt 0:00:02]} 24. Rxe8+ {[%emt 0:00:04]} 1-0

[Event "47th GER-ch Blitz 2020"]
[Site "Magdeburg"]
[Date "2020.08.15"]
[Round "28.5"]
[White "Siebrecht, Sebastian"]
[Black "Krause, Benedict"]
[Result "0-1"]
[ECO "A10"]
[WhiteElo "2429"]
[BlackElo "2425"]
[Annotator "ChessBase"]
[PlyCount "92"]
[EventDate "2020.07.28"]
[EventType "tourn"]
[EventCountry "GER"]
[SourceTitle "playchess.com"]
[Source "ChessBase"]
[SourceQuality "1"]
[TimeControl "180+2"]

1. c4 {[%emt 0:00:00]} g6 {[%emt 0:00:00]} 2. Nc3 {[%emt 0:00:00]} c5 {[%emt 0:00:01]} 3. Nf3 {[%emt 0:00:03]} Bg7 {[%emt 0:00:01]} 4. d4 {[%emt 0:00:02]} cxd4 {[%emt 0:00:01]} 5. Nxd4 {[%emt 0:00:01]} Nc6 {[%emt 0:00:01]} 6. Nc2 {[%emt 0:00:02]} Bxc3+ {[%emt 0:00:04]} 7. bxc3 {[%emt 0:00:01]} Qa5 {[%emt 0:00:01]} 8. Bd2 {[%emt 0:00:12]} Nf6 {[%emt 0:00:02]} 9. f3 {[%emt 0:00:03]} d6 {[%emt 0:00:02]} 10. e4 {[%emt 0:00:03]} Be6 {[%emt 0:00:31]} 11. Ne3 {[%emt 0:00:01]} Ne5 {[%emt 0:00:02]} 12. Nd5 {[%emt 0:00:01]} Rc8 {[%emt 0:00:05]} 13. Qb3 {[%emt 0:00:09]} b6 {[%emt 0:00:15]} 14. Be2 {[%emt 0:00:14]} Nfd7 {[%emt 0:00:21]} 15. f4 {[%emt 0:00:28]} Nc5 {[%emt 0:00:33]} 16. Qc2 {[%emt 0:00:01]} Ned7 {[%emt 0:00:06]} 17. O-O {[%emt 0:00:10]} Qa4 {[%emt 0:00:01]} 18. Qb1 {[%emt 0:00:14]} b5 {[%emt 0:00:07]} 19. f5 {[%emt 0:00:50]} Bxd5 {[%emt 0:00:02]} 20. cxd5 {[%emt 0:00:03]} Qxe4 {[%emt 0:00:12]} 21. Bxb5 {[%emt 0:00:06]} Qxb1 {[%emt 0:00:39]} 22. Raxb1 {[%emt 0:00:01]} O-O {[%emt 0:00:02]} 23. Bxd7 {[%emt 0:00:12]} Nxd7 {[%emt 0:00:02]} 24. Rb7 {[%emt 0:00:01]} Nf6 {[%emt 0:00:11]} 25. Rxe7 {[%emt 0:00:03]} Nxd5 {[%emt 0:00:06]} 26. Rxa7 {[%emt 0:00:02]} Nxc3 {[%emt 0:00:18]} 27. Bh6 {[%emt 0:00:01]} Ra8 {[%emt 0:00:01]} 28. fxg6 {[%emt 0:00:18]} Rxa7 {[%emt 0:00:02]} 29. gxh7+ {[%emt 0:00:01]} Kxh7 {[%emt 0:00:02]} 30. Bxf8 {[%emt 0:00:02]} Kg6 {[%emt 0:00:00]} 31. Bxd6 {[%emt 0:00:01]} Rxa2 32. Be5 {[%emt 0:00:02]} Ne4 {[%emt 0:00:03]} 33. h3 {[%emt 0:00:05]} f5 {[%emt 0:00:01]} 34. Rc1 {[%emt 0:00:04]} Re2 {[%emt 0:00:03]} 35. Bf4 {[%emt 0:00:05]} Ra2 {[%emt 0:00:01]} 36. Rc6+ {[%emt 0:00:02]} Kf7 {[%emt 0:00:00]} 37. Kh2 {[%emt 0:00:03]} Rf2 {[%emt 0:00:03]} 38. Be5 {[%emt 0:00:07]} Re2 {[%emt 0:00:02]} 39. h4 {[%emt 0:00:04]} Nf2 {[%emt 0:00:03]} 40. Bf4 {[%emt 0:00:03]} Ng4+ {[%emt 0:00:01]} 41. Kg3 {[%emt 0:00:01]} Ra2 {[%emt 0:00:02]} 42. h5 {[%emt 0:00:03]} Nf6 {[%emt 0:00:03]} 43. h6 {[%emt 0:00:04]} Nh5+ {[%emt 0:00:02]} 44. Kh4 {[%emt 0:00:08]} Nxf4 {[%emt 0:00:02]} 45. Kg5 {[%emt 0:00:01]} Ne6+ {[%emt 0:00:01]} 46. Kxf5 Nd4+ 0-1

[Event "47th GER-ch Blitz 2020"]
[Site "Magdeburg"]
[Date "2020.08.15"]
[Round "28.6"]
[White "Braun, Georg"]
[Black "Stein, Robert"]
[Result "0-1"]
[ECO "C90"]
[WhiteElo "2360"]
[BlackElo "2325"]
[Annotator "ChessBase"]
[PlyCount "56"]
[EventDate "2020.07.28"]
[EventType "tourn"]
[EventCountry "GER"]
[SourceTitle "playchess.com"]
[Source "ChessBase"]
[SourceQuality "1"]
[TimeControl "180+2"]

1. e4 {[%emt 0:00:00]} e5 {[%emt 0:00:00]} 2. Nf3 {[%emt 0:00:01]} Nc6 {[%emt 0:00:00]} 3. Bb5 a6 4. Ba4 {[%emt 0:00:02]} Nf6 {[%emt 0:00:00]} 5. O-O {[%emt 0:00:02]} Be7 {[%emt 0:00:01]} 6. Re1 {[%emt 0:00:02]} b5 {[%emt 0:00:00]} 7. Bb3 {[%emt 0:00:00]} d6 {[%emt 0:00:01]} 8. d4 {[%emt 0:00:03]} Nxd4 {[%emt 0:00:07]} 9. Nxd4 {[%emt 0:00:06]} exd4 {[%emt 0:00:01]} 10. c3 {[%emt 0:00:03]} dxc3 {[%emt 0:00:08]} 11. Nxc3 {[%emt 0:00:01]} O-O {[%emt 0:00:08]} 12. a4 {[%emt 0:00:02]} Rb8 {[%emt 0:00:03]} 13. axb5 {[%emt 0:00:04]} axb5 {[%emt 0:00:01]} 14. Bf4 {[%emt 0:00:04]} b4 {[%emt 0:00:11]} 15. Nd5 {[%emt 0:00:09]} Nxd5 {[%emt 0:00:03]} 16. Bxd5 {[%emt 0:00:02]} Bf6 {[%emt 0:00:03]} 17. Qd2 {[%emt 0:00:05]} Be6 {[%emt 0:00:16]} 18. Bxe6 {[%emt 0:00:18]} fxe6 {[%emt 0:00:03]} 19. e5 {[%emt 0:00:01]} dxe5 {[%emt 0:00:12]} 20. Qxd8 {[%emt 0:00:09]} Rfxd8 {[%emt 0:00:03]} 21. Bxe5 {[%emt 0:00:15]} Bxe5 {[%emt 0:00:01]} 22. Rxe5 {[%emt 0:00:01]} Rd2 {[%emt 0:00:06]} 23. Rb1 {[%emt 0:00:34]} Rbd8 {[%emt 0:00:17]} 24. Rxe6 {[%emt 0:00:05]} Rxb2 {[%emt 0:00:05]} 25. Rc1 {[%emt 0:00:06]} Rc2 {[%emt 0:00:01]} 26. Rb1 {[%emt 0:00:05]} b3 {[%emt 0:00:16]} 27. g3 {[%emt 0:00:12]} b2 {[%emt 0:00:03]} 28. Kg2 {[%emt 0:00:02]} Rdd2 {[%emt 0:00:02]} 0-1